fUST/lending_fUST_20240907
["ID","MTS","AMOUNT","RATE_DAILY","PERIOD"]
[337408292,1725648452953,-408.85618648,0.00054794,120]
[337408293,1725648452994,-3509.61146841,0.00054795,120]
[337408294,1725648453038,-3509.61146841,0.00054795,120]
[337408295,1725648453083,-3509.61146841,0.00054795,120]
[337408296,1725648453128,-3509.61146841,0.00054795,120]
[337408297,1725648453172,-3509.61146841,0.00054795,120]
[337408298,1725648453216,-3509.61146841,0.00054795,120]
[337408299,1725648453263,-3509.61146841,0.00054795,120]
[337408300,1725648453307,-3509.61146841,0.00054795,120]
[337408301,1725648453350,-3509.61146841,0.00054795,120]
[337408302,1725648453398,-3509.61146841,0.00054795,120]
[337408303,1725648453445,-3509.61146841,0.00054795,120]
[337408304,1725648453496,-3509.61146841,0.00054795,120]
[337408305,1725648453544,-3509.61146841,0.00054795,120]
[337408306,1725648453593,-3509.61146841,0.00054795,120]
[337408307,1725648453645,-3509.61146841,0.00054795,120]
[337408308,1725648453694,-3509.61146841,0.00054795,120]
[337408309,1725648453744,-3509.61146841,0.00054795,120]
[337408310,1725648453796,-3509.61146841,0.00054795,120]
[337408311,1725648453847,-3509.61146841,0.00054795,120]
[337408312,1725648453903,-3509.61146841,0.00054795,120]
[337408313,1725648453953,-3509.61146841,0.00054795,120]
[337408314,1725648454000,-3509.61146841,0.00054795,120]
[337408315,1725648454047,-3509.61146841,0.00054795,120]
[337408316,1725648454092,-3509.61146841,0.00054795,120]
[337408317,1725648454143,-3509.61146841,0.00054795,120]
[337408318,1725648454188,-3509.61146841,0.00054795,120]
[337408319,1725648454233,-3509.61146841,0.00054795,120]
[337408320,1725648454278,-3509.61146841,0.00054795,120]
[337408321,1725648454322,-3509.61146841,0.00054795,120]
[337408322,1725648454367,-3509.61146841,0.00054795,120]
[337408323,1725648454411,-3509.61146841,0.00054795,120]
[337408324,1725648454459,-3509.61146841,0.00054795,120]
[337408325,1725648454504,-3509.61146841,0.00054795,120]
[337408326,1725648454549,-3509.61146841,0.00054795,120]
[337408327,1725648454595,-3509.61146841,0.00054795,120]
[337408328,1725648454645,-3509.61146841,0.00054795,120]
[337408329,1725648454691,-3509.61146841,0.00054795,120]
[337408330,1725648454740,-3509.61146841,0.00054795,120]
[337408331,1725648454789,-3509.61146841,0.00054795,120]
[337408332,1725648454835,-3509.61146841,0.00054795,120]
[337408333,1725648454884,-3509.61146841,0.00054795,120]
[337408334,1725648454928,-3509.61146841,0.00054795,120]
[337408335,1725648454973,-3592.19056178,0.00054795,120]
[337408336,1725648455018,-3592.19056178,0.00054795,120]
[337408337,1725648455061,-3592.19056178,0.00054795,120]
[337408338,1725648455106,-3592.19056178,0.00054795,120]
[337408339,1725648455149,-3475.37135652,0.00054795,120]
[337408340,1725648455193,-3592.19056178,0.00054795,120]
[337408341,1725648455237,-3475.37135652,0.00054795,120]
[337408342,1725648455280,-3592.19056178,0.00054795,120]
[337408343,1725648455548,-3475.37135652,0.00054795,120]
[337408344,1725648455597,-3475.37135652,0.00054795,120]
[337408345,1725648455651,-3475.37135652,0.00054795,120]
[337408346,1725648455700,-3475.37135652,0.00054795,120]
[337408347,1725648455752,-3592.19056178,0.00054795,120]
[337408348,1725648455801,-3592.19056178,0.00054795,120]
[337408349,1725648455848,-3592.19056178,0.00054795,120]
[337408350,1725648455900,-3475.37135652,0.00054795,120]
[337408351,1725648455945,-3475.37135652,0.00054795,120]
[337408352,1725648455991,-3475.37135652,0.00054795,120]
[337408353,1725648456038,-3475.37135652,0.00054795,120]
[337408354,1725648456086,-3475.37135652,0.00054795,120]
[337408355,1725648456131,-3475.37135652,0.00054795,120]
[337408356,1725648456176,-3475.37135652,0.00054795,120]
[337408357,1725648456222,-3475.37135652,0.00054795,120]
[337408358,1725648456268,-3475.37135652,0.00054795,120]
[337408359,1725648456313,-3475.37135652,0.00054795,120]
[337408360,1725648456360,-3475.37135652,0.00054795,120]
[337408361,1725648456403,-3592.19056178,0.00054795,120]
[337408362,1725648456446,-3475.37135652,0.00054795,120]
[337408363,1725648456499,-3475.37135652,0.00054795,120]
[337408364,1725648456548,-3475.37135652,0.00054795,120]
[337408365,1725648456596,-3475.37135652,0.00054795,120]
[337408366,1725648456647,-3475.37135652,0.00054795,120]
[337408367,1725648456691,-3475.37135652,0.00054795,120]
[337408368,1725648456739,-3475.37135652,0.00054795,120]
[337408369,1725648456789,-3475.37135652,0.00054795,120]
[337408370,1725648456837,-3475.37135652,0.00054795,120]
[337408371,1725648456883,-3475.37135652,0.00054795,120]
[337408372,1725648456929,-1000.0,0.00054999,120]
[337408373,1725648456974,-1000.0,0.00055,120]
[337408374,1725648457018,-506.43329797,0.00055,120]
[337408375,1725648457064,-200.0,0.00055,120]
[337408376,1725648457109,-8262.6440253,0.00055,35]
[337408377,1725648457153,-11765.83270585,0.00055,120]
[337408378,1725648457196,-500.0,0.00055,120]
[337408379,1725648457244,-151.0,0.00055068,120]
[337408380,1725648457288,-500.0,0.00055125,120]
[337408381,1725648457333,-1000.0,0.000555,120]
[337408382,1725648457378,-65989.98,0.000556,30]
[337408383,1725648457422,-3780.31815152,0.00055758,60]
[337408384,1725648457469,-2000.95179413,0.00055835,120]
[337408385,1725648457515,-150.0,0.00056,120]
[337408386,1725648457563,-151.0,0.00056027,120]
[337408387,1725648457612,-151.0,0.0005674,120]
[337408388,1725648457663,-2000.95179413,0.00056835,120]
[337408389,1725648457713,-150.0,0.00057,120]
[337408390,1725648457763,-152.76035624,0.00057169,108]
[337408391,1725648457815,-504.04242021,0.00057247,120]
[337408392,1725648457866,-3000.0,0.00057424,120]
[337408393,1725648458098,1100.0,0.00030485,7]
[337408394,1725648458169,1100.0,0.00031017,7]
[337408395,1725648458251,1100.0,0.00031612,7]
[337408396,1725648458314,1100.0,0.00031649,7]
[337408397,1725648458392,1100.0,0.00031721,7]
[337408398,1725648458468,1100.0,0.00031857,7]
[337408399,1725648458533,1100.0,0.00030323,7]
[337408400,1725648458584,1100.0,0.00032473,7]
[337408401,1725648458692,1100.0,0.00030576,7]
[337408402,1725648458743,1100.0,0.00032638,7]
[337408403,1725648458816,1100.0,0.00032686,7]
[337408404,1725648458867,1100.0,0.00031303,7]
[337408405,1725648458939,1100.0,0.00032753,7]
[337408406,1725648459005,1100.0,0.00032825,7]
[337408407,1725648459060,1100.0,0.00031557,7]
[337408408,1725648459116,1100.0,0.00032906,7]
[337408409,1725648459182,1100.0,0.00031936,7]
[337408410,1725648459230,1100.0,0.00033012,7]
[337408411,1725648459280,1100.0,0.00032177,7]
[337408412,1725648459343,1100.0,0.00032304,7]
[337408413,1725648459457,1200.0,0.00033691,7]
[337408414,1725648459513,1100.0,0.00032538,7]
[337408415,1725648459575,1100.0,0.00032852,7]
[337408416,1725648459628,1100.0,0.00033142,7]
[337408417,1725648459691,1100.0,0.00033239,7]
[337408418,1725648459744,1700.0,0.00033869,7]
[337408419,1725648459826,151.0,0.00054795,30]
[337408420,1725648459888,151.0,0.00054795,30]
[337408421,1725648459949,151.0,0.00054795,30]
[337408422,1725648460000,800.0,0.0003014,7]
[337408423,1725648460053,151.0,0.00054795,30]
[337408424,1725648460103,800.0,0.00030193,7]
[337408425,1725648460201,800.0,0.0003068,7]
[337408426,1725648460346,800.0,0.00031128,7]
[337408427,1725648460400,151.0,0.00054795,30]
[337408428,1725648460447,800.0,0.00031145,7]
[337408429,1725648460506,151.0,0.00054795,30]
[337408430,1725648460556,800.0,0.00031185,7]
[337408431,1725648460620,500.0,0.00031873,7]
[337408432,1725648460675,151.0,0.00054795,30]
[337408433,1725648460727,800.0,0.00031289,7]
[337408434,1725648460804,169.17,0.00057533,5]
[337408435,1725648460852,800.0,0.00032434,7]
[337408436,1725648460910,427.138,0.00056,30]
[337408437,1725648460960,169.17,0.00057533,5]
[337408438,1725648461006,800.0,0.00032436,7]
[337408439,1725648461153,169.17,0.00057533,5]
[337408440,1725648461200,151.0,0.00054795,30]
[337408441,1725648461249,800.0,0.00032611,7]
[337408442,1725648461297,169.17,0.00057533,5]
[337408443,1725648461352,179.604459,0.00054795,30]
[337408444,1725648461410,169.17,0.00057533,5]
[337408445,1725648461465,800.0,0.00032667,7]
[337408446,1725648461528,169.17,0.00057533,5]
[337408447,1725648461587,169.17,0.00057533,5]
[337408448,1725648461647,800.0,0.00032851,7]
[337408449,1725648461704,169.17,0.00057533,5]
[337408450,1725648461769,800.0,0.00032937,7]
[337408451,1725648461822,169.17,0.00057533,5]
[337408452,1725648461874,738.00532924,0.00054795,120]
[337408453,1725648461923,738.00532924,0.00054795,120]
[337408454,1725648461973,738.00532924,0.00054795,120]
[337408455,1725648462025,738.00532924,0.00054795,120]
[337408456,1725648462087,738.00532924,0.00054795,120]
[337408457,1725648462136,169.17,0.00057533,5]
[337408458,1725648462188,738.00532924,0.00054795,120]
[337408459,1725648462236,738.00532924,0.00054795,120]
[337408460,1725648462281,800.0,0.00032959,7]
[337408461,1725648462330,738.00532924,0.00054795,120]
[337408462,1725648462376,738.00532924,0.00054795,120]
[337408463,1725648462424,738.00532924,0.00054795,120]
[337408464,1725648462477,738.00532924,0.00054795,120]
[337408465,1725648462534,738.00532924,0.00054795,120]
[337408466,1725648462582,738.00532924,0.00054795,120]
[337408467,1725648462634,738.00532924,0.00054795,120]
[337408469,1725648462684,738.00532924,0.00054795,120]
[337408470,1725648462736,1400.0,0.0003349,7]
[337408471,1725648462793,738.00532924,0.00054795,120]
[337408472,1725648462850,738.00532924,0.00054795,120]
[337408473,1725648462906,738.00532924,0.00054795,120]
[337408474,1725648462957,738.00532924,0.00054795,120]
[337408475,1725648463015,738.00532924,0.00054795,120]
[337408476,1725648463218,738.00532924,0.00054795,120]
[337408477,1725648463272,738.00532924,0.00054795,120]
[337408478,1725648463326,738.00532924,0.00054795,120]
[337408479,1725648463377,738.00532924,0.00054795,120]
[337408480,1725648463427,738.00532924,0.00054795,120]
[337408481,1725648463484,738.00532924,0.00054795,120]
[337408482,1725648463612,738.00532924,0.00054795,120]
[337408483,1725648463705,738.00532924,0.00054795,120]
[337408484,1725648463764,738.00532924,0.00054795,120]
[337408485,1725648463826,738.00532924,0.00054795,120]
[337408486,1725648463884,738.00532924,0.00054795,120]
[337408487,1725648463941,738.00532924,0.00054795,120]
[337408488,1725648463997,738.00532924,0.00054795,120]
[337408489,1725648464052,738.00532924,0.00054795,120]
[337408490,1725648464110,738.00532924,0.00054795,120]
[337408491,1725648464185,738.00532924,0.00054795,120]
[337408492,1725648464239,738.00532924,0.00054795,120]
[337408493,1725648464294,738.00532924,0.00054795,120]
[337408494,1725648464347,738.00532924,0.00054795,120]
[337408495,1725648464419,738.00532924,0.00054795,120]
[337408496,1725648464471,738.00532924,0.00054795,120]
[337408497,1725648464531,738.00532924,0.00054795,120]
[337408498,1725648464588,738.00532924,0.00054795,120]
[337408499,1725648464649,738.00532924,0.00054795,120]
[337408500,1725648464699,738.00532924,0.00054795,120]
[337408501,1725648464753,738.00532924,0.00054795,120]
[337408502,1725648464807,738.00532924,0.00054795,120]
[337408503,1725648464880,738.00532924,0.00054795,120]
[337408504,1725648464933,738.00532924,0.00054795,120]
[337408505,1725648464993,738.00532924,0.00054795,120]
[337408506,1725648465044,738.00532924,0.00054795,120]
[337408507,1725648465321,1000.0,0.0003004,7]
[337408508,1725648465379,1000.0,0.00030428,7]
[337408509,1725648465439,1000.0,0.00030481,7]
[337408510,1725648465548,1000.0,0.00030771,7]
[337408511,1725648465907,1000.0,0.00030817,7]
[337408512,1725648466303,1000.0,0.00031044,7]
[337408514,1725648466795,1000.0,0.00031146,7]
[337408516,1725648467146,1000.0,0.00031676,7]
[337408518,1725648467532,1000.0,0.0003195,7]
[337408520,1725648467890,1000.0,0.00032305,7]
[337408522,1725648468363,1000.0,0.00032642,7]
[337408523,1725648468768,1000.0,0.00033153,7]
[337408525,1725648469179,1000.0,0.00033505,7]
[337408526,1725648469778,1800.0,0.00033834,7]
[337408527,1725648470880,500.0,0.00054795,120]
[337408528,1725648470928,500.0,0.00054795,120]
[337408529,1725648470977,500.0,0.00054795,120]
[337408530,1725648471034,500.0,0.00054795,120]
[337408531,1725648471090,500.0,0.00054795,120]
[337408532,1725648471146,500.0,0.00054795,120]
[337408533,1725648471193,500.0,0.00054795,120]
[337408534,1725648471243,500.0,0.00054795,120]
[337408535,1725648471291,500.0,0.00054795,120]
[337408536,1725648471337,500.0,0.00054795,120]
[337408537,1725648471403,500.0,0.00054795,120]
[337408538,1725648471449,500.0,0.00054795,120]
[337408539,1725648471502,500.0,0.00054795,120]
[337408540,1725648471568,500.0,0.00054795,120]
[337408541,1725648471710,500.0,0.00054795,120]
[337408542,1725648471769,500.0,0.00054795,120]
[337408543,1725648471821,500.0,0.00054795,120]
[337408544,1725648471870,500.0,0.00054795,120]
[337408545,1725648471921,500.0,0.00054795,120]
[337408546,1725648471973,500.0,0.00054795,120]
[337408547,1725648472027,500.0,0.00054795,120]
[337408548,1725648472081,500.0,0.00054795,120]
[337408549,1725648472131,500.0,0.00054795,120]
[337408550,1725648472188,500.0,0.00054795,120]
[337408551,1725648472240,500.0,0.00054795,120]
[337408552,1725648472290,500.0,0.00054795,120]
[337408553,1725648472347,500.0,0.00054795,120]
[337408554,1725648472398,500.0,0.00054795,120]
[337408555,1725648472448,500.0,0.00054795,120]
[337408556,1725648472508,500.0,0.00054795,120]
[337408557,1725648472560,500.0,0.00054795,120]
[337408558,1725648472612,500.0,0.00054795,120]
[337408559,1725648472665,348.67833973,0.00054795,120]
[337408560,1725648472717,500.0,0.00054795,120]
[337408561,1725648472768,500.0,0.00054795,120]
[337408562,1725648472821,500.0,0.00054795,120]
[337408563,1725648472873,500.0,0.00054795,120]
[337408564,1725648472921,313.58279271,0.00054795,120]
[337408565,1725648472972,500.0,0.00054795,120]
[337408566,1725648473022,500.0,0.00054795,120]
[337408568,1725648473837,824.81830766,0.00054521,23]
[337408569,1725648473888,8003.80717647,0.00046026,60]
[337408598,1725648546156,-300.0,0.00017168,2]
[337408599,1725648546184,-3486.53093953,0.00017169,2]
[337408662,1725648636570,-300.0,0.00017168,2]
[337408663,1725648636581,-5050.0,0.00017169,2]
[337408664,1725648636594,-622.11384583,0.00017169,2]
[337408665,1725648636608,-6652.17199174,0.00017169,2]
[337408709,1725648638355,-8026.5881736,0.00017169,2]
[337408712,1725648638366,-665.9504022,0.00017182,2]
[337408714,1725648638376,-150.0,0.00017322,2]
[337408716,1725648638386,-250.0,0.0001755,2]
[337408718,1725648638395,-250.0,0.00017598,2]
[337408720,1725648638404,-250.0,0.00017646,2]
[337408722,1725648638415,-250.0,0.00017695,2]
[337408724,1725648638424,-250.0,0.00017743,2]
[337408726,1725648638434,-250.0,0.00017791,2]
[337408728,1725648638444,-250.0,0.00017839,2]
[337408729,1725648638454,-250.0,0.00017887,2]
[337408731,1725648638464,-250.0,0.00017935,2]
[337408732,1725648638480,-250.0,0.00017983,2]
[337408733,1725648638497,-250.0,0.00018031,2]
[337408734,1725648638507,-250.0,0.0001808,2]
[337408735,1725648638519,-250.0,0.00018128,2]
[337408736,1725648638529,-250.0,0.00018176,2]
[337408737,1725648638539,-250.0,0.00018224,2]
[337408738,1725648638549,-250.0,0.00018272,2]
[337408739,1725648638560,-250.0,0.0001832,2]
[337408740,1725648638570,-250.0,0.00018368,2]
[337408741,1725648638580,-250.0,0.00018417,2]
[337408742,1725648638590,-250.0,0.00018465,2]
[337408743,1725648638600,-420.0,0.00018885,2]
[337408744,1725648638610,-1080.50000725,0.00019056,2]
[337408745,1725648638619,-250.39814175,0.00019078,2]
[337408746,1725648638629,-436.441121,0.00019156,2]
[337408747,1725648638639,-436.441121,0.00019156,2]
[337408748,1725648638649,-27552.5308694,0.00019156,2]
[337408749,1725648638659,-456.08309524,0.00019156,2]
[337408750,1725648638669,-36442.50062446,0.00019157,2]
[337408782,1725648640673,-535.72,0.00019157,2]
[337408790,1725648640739,-30426.72727814,0.00019157,2]
[337408864,1725648647631,-1000.0,0.0003347,90]
[337408865,1725648647684,-942.299999,0.0003347,90]
[337408866,1725648647738,-1000.0,0.0003347,120]
[337408867,1725648647789,-1000.0,0.0003347,120]
[337408868,1725648647840,-334.9,0.0003347,120]
[337408869,1725648647891,-369.06706495,0.0003347,30]
[337408870,1725648647940,-1007.84902846,0.0003347,32]
[337408871,1725648648199,-867.39351531,0.0003347,120]
[337408872,1725648648247,-154.99034465,0.0003347,120]
[337408873,1725648648297,-182.26093213,0.0003347,120]
[337408874,1725648648345,-1043.60435657,0.0003347,60]
[337408875,1725648648392,-1039.01215253,0.0003347,120]
[337408876,1725648648439,-899.95550725,0.0003347,120]
[337408877,1725648648488,-1020.16386512,0.0003347,120]
[337408882,1725648835847,1000.0,0.0003347,120]
[337408883,1725648836237,1000.0,0.0003347,120]
[337408884,1725648836651,334.1,0.0003347,120]
[337408885,1725648843527,-945.43750637,0.00019057,2]
[337408886,1725648843553,-6120.88150363,0.00019078,2]
[337408887,1725648843577,-300.0,0.00019146,2]
[337408888,1725648843603,-22805.3566019,0.00019147,2]
[337408889,1725648843634,-51691.3243881,0.00019147,2]
[337408892,1725648882844,399.24999995,0.00018957,2]
[337408893,1725648890214,-47788.75000005,0.00019147,2]
[337408974,1725649832436,-393.018075,0.00017684,2]
[337408977,1725649832449,-141.991925,0.00017858,2]
[337409066,1725649838570,-158.008075,0.00017858,2]
[337409067,1725649838579,-300.0,0.00017858,2]
[337409068,1725649838588,-24900.0,0.00017859,2]
[337409069,1725649838598,-5579.1654031,0.00017868,2]
[337409070,1725649838608,-250.0,0.00017901,2]
[337409071,1725649838622,-158.123341,0.00017954,2]
[337409072,1725649838634,-158.123341,0.00018058,2]
[337409073,1725649838644,-158.123341,0.00018162,2]
[337409074,1725649838656,-158.123341,0.00018266,2]
[337409075,1725649838666,-158.123341,0.0001837,2]
[337409076,1725649838676,-158.123341,0.00018474,2]
[337409077,1725649838686,-158.123341,0.00018578,2]
[337409078,1725649838694,-158.123341,0.00018682,2]
[337409079,1725649838703,-158.123341,0.00018786,2]
[337409080,1725649838712,-158.123341,0.0001889,2]
[337409081,1725649838722,-7970.649658,0.00018936,2]
[337409082,1725649838731,-898.0122373,0.00019027,2]
[337409083,1725649838741,-263.42614441,0.00019038,2]
[337409084,1725649838751,-898.01223728,0.0001904,2]
[337409085,1725649838760,-1000.0,0.00019048,2]
[337409086,1725649838771,-465.38478478,0.00019051,2]
[337409087,1725649838781,-898.01223728,0.00019053,2]
[337409088,1725649838790,-412.80292201,0.00019058,2]
[337409089,1725649838800,-898.01223728,0.00019065,2]
[337409090,1725649838809,-225.35832762,0.00019068,2]
[337409091,1725649838819,-898.01223728,0.00019078,2]
[337409092,1725649838829,-150.112233,0.000191,2]
[337409093,1725649838839,-186.535732,0.000191,2]
[337409094,1725649838848,-150.112233,0.000191,2]
[337409095,1725649838858,-150.112233,0.000191,2]
[337409096,1725649838871,-150.112233,0.000191,2]
[337409097,1725649838881,-275.175025,0.000191,2]
[337409098,1725649838890,-322.26,0.00019117,3]
[337409099,1725649838900,-161.13,0.00019117,3]
[337409100,1725649838910,-425.11656054,0.00019126,2]
[337409101,1725649838920,-308.45638369,0.00019126,2]
[337409102,1725649838930,-500.0,0.00019126,2]
[337409103,1725649838941,-500.0,0.00019126,2]
[337409104,1725649838950,-500.0,0.00019126,2]
[337409105,1725649838960,-500.0,0.00019126,2]
[337409106,1725649838970,-500.0,0.00019126,2]
[337409107,1725649838979,-500.0,0.00019126,2]
[337409108,1725649838989,-500.0,0.00019126,2]
[337409109,1725649838998,-500.0,0.00019126,2]
[337409110,1725649839007,-500.0,0.00019126,2]
[337409111,1725649839016,-500.0,0.00019126,2]
[337409112,1725649839025,-500.0,0.00019126,2]
[337409113,1725649839035,-500.0,0.00019126,2]
[337409114,1725649839045,-500.0,0.00019126,2]
[337409115,1725649839054,-500.0,0.00019126,2]
[337409116,1725649839063,-500.0,0.00019126,2]
[337409117,1725649839073,-500.0,0.00019126,2]
[337409118,1725649839082,-500.0,0.00019126,2]
[337409119,1725649839091,-500.0,0.00019126,2]
[337409120,1725649839100,-500.0,0.00019126,2]
[337409121,1725649839110,-500.0,0.00019126,2]
[337409122,1725649839121,-500.0,0.00019126,2]
[337409123,1725649839131,-500.0,0.00019126,2]
[337409124,1725649839142,-250.00000004,0.00019126,2]
[337409125,1725649839151,-500.0,0.00019126,2]
[337409126,1725649839160,-500.0,0.00019126,2]
[337409127,1725649839169,-500.0,0.00019126,2]
[337409128,1725649839178,-500.0,0.00019126,2]
[337409129,1725649839187,-500.0,0.00019126,2]
[337409130,1725649839197,-500.0,0.00019126,2]
[337409131,1725649839206,-500.0,0.00019126,2]
[337409132,1725649839216,-500.0,0.00019126,2]
[337409133,1725649839227,-500.0,0.00019126,2]
[337409134,1725649839237,-500.0,0.00019126,2]
[337409135,1725649839246,-500.0,0.00019126,2]
[337409136,1725649839255,-500.0,0.00019126,2]
[337409137,1725649839265,-500.0,0.00019126,2]
[337409138,1725649839276,-500.0,0.00019126,2]
[337409139,1725649839286,-500.0,0.00019126,2]
[337409140,1725649839296,-500.0,0.00019126,2]
[337409141,1725649839305,-500.0,0.00019126,2]
[337409142,1725649839315,-500.0,0.00019126,2]
[337409143,1725649839324,-500.0,0.00019126,2]
[337409144,1725649839333,-500.0,0.00019126,2]
[337409145,1725649839343,-500.00000001,0.00019126,2]
[337409146,1725649839352,-500.0,0.00019126,2]
[337409147,1725649839362,-500.0,0.00019126,2]
[337409148,1725649839376,-500.0,0.00019126,2]
[337409149,1725649839386,-500.0,0.00019126,2]
[337409150,1725649839396,-500.0,0.00019126,2]
[337409151,1725649839405,-500.0,0.00019126,2]
[337409152,1725649839414,-500.0,0.00019126,2]
[337409153,1725649839424,-262.41979232,0.00019127,2]
[337409154,1725649839433,-500.0,0.00019127,2]
[337409155,1725649839443,-211.51095751,0.00019127,2]
[337409156,1725649839452,-176.21034156,0.00019127,2]
[337409157,1725649839461,-126688.602165,0.00019127,2]
[337409158,1725649839471,-161062.195897,0.00019127,2]
[337409159,1725649839480,-245.926306,0.00019127,2]
[337409160,1725649839489,-245.926306,0.00019127,2]
[337409161,1725649839499,-336.553146,0.00019127,2]
[337409162,1725649839508,-336.553146,0.00019127,2]
[337409163,1725649839518,-223.504518,0.00019127,2]
[337409164,1725649839528,-223.504518,0.00019127,2]
[337409165,1725649839538,-193.552493,0.00019127,2]
[337409166,1725649839549,-126688.602165,0.00019128,2]
[337409167,1725649839558,-429499.189057,0.00019128,2]
[337409168,1725649839568,-151.0,0.00019146,2]
[337409169,1725649839578,-151.0,0.00019146,2]
[337409170,1725649839588,-151.0,0.00019146,2]
[337409171,1725649839597,-691.285302,0.00019146,2]
[337409172,1725649839606,-691.285302,0.00019146,2]
[337409173,1725649839618,-1545.995345,0.00019146,2]
[337409174,1725649839627,-1545.995345,0.00019146,2]
[337409175,1725649839638,-893.665046,0.00019146,2]
[337409176,1725649839648,-375.258123,0.00019146,2]
[337409177,1725649839657,-893.665046,0.00019146,2]
[337409178,1725649839667,-375.258123,0.00019146,2]
[337409179,1725649839676,-228.557136,0.00019146,2]
[337409180,1725649839686,-151.0,0.00019146,2]
[337409181,1725649839695,-151.0,0.00019146,2]
[337409182,1725649839705,-151.0,0.00019146,2]
[337409183,1725649839715,-151.0,0.00019156,2]
[337409184,1725649839726,-151.0,0.00019156,2]
[337409185,1725649839736,-151.0,0.00019156,2]
[337409186,1725649839747,-151.818722,0.00019158,2]
[337409187,1725649839760,-585.639444,0.00019158,2]
[337409188,1725649839770,-585.639444,0.00019158,2]
[337409189,1725649839779,-167.585204,0.00019158,2]
[337409190,1725649839790,-151.0,0.00019158,2]
[337409191,1725649839799,-167.585204,0.00019158,2]
[337409192,1725649839809,-418.453678,0.00019158,2]
[337409193,1725649839819,-418.453678,0.00019158,2]
[337409194,1725649839828,-151.0,0.00019158,2]
[337409195,1725649839837,-151.0,0.00019158,2]
[337409196,1725649839847,-151.0,0.00019158,2]
[337409197,1725649839858,-392.797009,0.00019158,2]
[337409198,1725649839874,-392.797009,0.00019158,2]
[337409200,1725649840051,-151.0,0.00019158,2]
[337409201,1725649840063,-151.0,0.00019158,2]
[337409202,1725649840073,-226.655077,0.00019158,2]
[337409203,1725649840083,-155.0,0.0001916,2]
[337409204,1725649840093,-151.0,0.00019168,2]
[337409205,1725649840102,-151.0,0.00019168,2]
[337409206,1725649840112,-502.15263746,0.00019173,2]
[337409207,1725649840123,-190.548928,0.00019173,2]
[337409208,1725649840132,-500.0,0.00019178,2]
[337409209,1725649840143,-500.0,0.00019178,2]
[337409210,1725649840152,-500.0,0.00019178,2]
[337409211,1725649840162,-500.0,0.00019178,2]
[337409212,1725649840172,-500.0,0.00019178,2]
[337409213,1725649840181,-500.0,0.00019178,2]
[337409214,1725649840192,-296.33697978,0.00019178,2]
[337409215,1725649840201,-500.0,0.00019178,2]
[337409216,1725649840211,-500.0,0.00019178,2]
[337409217,1725649840220,-500.0,0.00019178,2]
[337409218,1725649840230,-500.0,0.00019178,2]
[337409219,1725649840240,-500.0,0.00019178,2]
[337409220,1725649840251,-500.0,0.00019178,2]
[337409221,1725649840263,-500.0,0.00019178,2]
[337409222,1725649840274,-500.0,0.00019178,2]
[337409223,1725649840286,-500.0,0.00019178,2]
[337409224,1725649840296,-237.97984531,0.00019178,2]
[337409225,1725649840305,-216.38354753,0.00019178,2]
[337409226,1725649840314,-500.0,0.00019178,2]
[337409228,1725649840323,-500.0,0.00019178,2]
[337409229,1725649840333,-500.0,0.00019178,2]
[337409231,1725649840343,-500.0,0.00019178,2]
[337409233,1725649840354,-500.0,0.00019178,2]
[337409234,1725649840364,-500.0,0.00019178,2]